bitfinex-derivatives/quotes_SOLF0:USTF0_20260104
["timestamp","ask_amount","ask_price","bid_price","bid_amount"]
[1767565468440,5.64559008,134.09,134.02,6.7181]
[1767565469441,5.64559008,134.09,134.02,7.03685572]
[1767565471637,12.36049008,134.09,134.02,7.03685572]
[1767565471936,6.7149,134.09,134.02,7.03685572]
[1767565477153,6.7149,134.09,134.02,0.31875572]
[1767565477341,5.63717013,134.08,134.02,0.31875572]
[1767565477547,6.7149,134.09,134.02,0.31875572]
[1767565477745,5.63717126,134.08,134.02,0.31875572]
[1767565478043,6.7149,134.09,134.02,0.31875572]
[1767565478244,5.63766873,134.08,134.02,0.31875572]
[1767565478448,6.7149,134.09,134.02,0.31875572]
[1767565478650,5.63685952,134.08,134.02,0.31875572]
[1767565478852,6.7149,134.09,134.02,0.31875572]
[1767565479054,5.63685952,134.08,134.02,0.31875572]
[1767565479261,6.7149,134.09,134.02,0.31875572]
[1767565479447,5.63674877,134.08,134.02,0.31875572]
[1767565479643,6.7149,134.09,134.02,0.31875572]
[1767565479847,5.63674877,134.08,134.02,0.31875572]
[1767565480050,88.12,134.1,134.03,0.31943439]
[1767565481557,94.8344,134.1,134.03,0.31943439]
[1767565482260,5.63861039,134.09,134.03,0.31943439]
[1767565482452,94.8344,134.1,134.03,0.31943439]
[1767565482755,5.63859167,134.09,134.03,0.31943439]
[1767565482950,94.8344,134.1,134.03,0.31943439]
[1767565483150,5.63859167,134.09,134.03,0.31943439]
[1767565483351,94.8344,134.1,134.03,0.31943439]
[1767565483559,5.63969756,134.09,134.03,0.31943439]
[1767565483860,94.8344,134.1,134.03,0.31943439]
[1767565484058,5.63969756,134.09,134.03,0.31943439]
[1767565484257,94.8344,134.1,134.03,0.31943439]
[1767565484560,5.64099585,134.09,134.03,0.31943439]
[1767565484760,6.7141,134.11,134.04,7.03653439]
[1767565484962,5.64063924,134.1,134.04,7.03653439]
[1767565485155,6.7141,134.11,134.04,7.03653439]
[1767565485358,5.64063924,134.1,134.04,7.03653439]
[1767565485656,6.7141,134.11,134.04,7.03653439]
[1767565485857,5.64089446,134.1,134.04,7.03653439]
[1767565486052,6.7141,134.11,134.04,7.03653439]
[1767565486253,5.6408917,134.1,134.04,7.03653439]
[1767565486454,6.7141,134.11,134.04,7.03653439]
[1767565486655,5.64217222,134.1,134.04,7.03653439]
[1767565486948,6.7141,134.11,134.04,7.03653439]
[1767565487164,5.64217222,134.1,134.04,7.03653439]
[1767565487360,6.7141,134.11,134.04,7.03653439]
[1767565487554,5.6428162,134.1,134.04,7.03653439]
[1767565487755,6.7141,134.11,134.04,7.03653439]
[1767565487960,5.6428162,134.1,134.04,7.03653439]
[1767565488256,6.7141,134.11,134.04,7.03653439]
[1767565488457,5.64354613,134.1,134.04,7.03653439]
[1767565488654,6.7141,134.11,134.04,7.03653439]
[1767565488855,5.64354613,134.1,134.04,7.03653439]
[1767565489163,6.7141,134.11,134.04,7.03653439]
[1767565489367,5.64436028,134.1,134.04,7.03653439]
[1767565489553,6.7141,134.11,134.04,7.03653439]
[1767565489755,5.65501473,134.1,134.04,7.03653439]
[1767565489952,6.7141,134.11,134.04,7.03653439]
[1767565490152,5.65501473,134.1,134.04,7.03653439]
[1767565490368,6.7141,134.11,134.04,7.03653439]
[1767565490564,5.65593094,134.1,134.04,7.03653439]
[1767565490863,6.7141,134.11,134.04,7.03653439]
[1767565491064,5.65593094,134.1,134.04,7.03653439]
[1767565491262,6.7141,134.11,134.04,7.03653439]
[1767565491462,5.65650125,134.1,134.04,7.03653439]
[1767565491665,6.7141,134.11,134.04,7.03653439]
[1767565491863,5.65650125,134.1,134.04,7.03653439]
[1767565492165,6.7141,134.11,134.04,7.03653439]
[1767565492365,5.65650123,134.1,134.04,7.03653439]
[1767565492565,6.7141,134.11,134.04,7.03653439]
[1767565492766,5.65713055,134.1,134.04,7.03653439]
[1767565493069,6.7141,134.11,134.04,7.03653439]
[1767565493371,5.65713055,134.1,134.04,7.03653439]
[1767565493562,5.65713055,134.09,134.04,7.03653439]
[1767565493763,6.7141,134.11,134.04,7.03653439]
[1767565493963,5.65783936,134.1,134.04,7.03653439]
[1767565494164,5.65783936,134.09,134.04,7.03653439]
[1767565494362,6.7141,134.11,134.04,7.03653439]
[1767565494562,5.65862291,134.1,134.04,7.03653439]
[1767565494869,5.65862291,134.09,134.04,7.03653439]
[1767565495070,6.7141,134.11,134.04,7.03653439]
[1767565495371,5.65862291,134.1,134.04,7.03653439]
[1767565495571,5.65862291,134.09,134.04,7.03653439]
[1767565495771,6.7141,134.11,134.04,7.03653439]
[1767565496071,5.65942433,134.1,134.04,7.03653439]
[1767565496267,5.65942433,134.09,134.04,7.03653439]
[1767565496569,6.7141,134.11,134.04,7.03653439]
[1767565496762,5.66036818,134.1,134.04,7.03653439]
[1767565496962,5.66036818,134.09,134.04,7.03653439]
[1767565497164,1.71017133,134.1,134.02,7.03743439]
[1767565497365,5.66048797,134.09,134.02,7.03743439]
[1767565497564,5.66048797,134.08,134.02,7.03743439]
[1767565497770,192.5738,134.12,134.02,7.03743439]
[1767565498069,1.71017133,134.09,134.02,7.03743439]
[1767565498272,5.661746,134.08,134.02,7.03743439]
[1767565498471,1.71017133,134.09,134.02,7.03743439]
[1767565498661,5.66271914,134.08,134.02,7.03743439]
[1767565498867,8.42517133,134.09,134.02,7.03743439]
[1767565499068,5.66271637,134.08,134.02,7.03743439]
[1767565499267,8.42517133,134.09,134.02,7.03743439]
[1767565499468,5.66384368,134.08,134.02,7.03743439]
[1767565499670,8.42517133,134.09,134.02,7.03743439]
[1767565499862,5.66384645,134.08,134.02,7.03743439]
[1767565500067,8.42517133,134.09,134.02,7.03743439]
[1767565500264,5.66384645,134.08,134.02,7.03743439]
[1767565500471,5.66384645,134.07,134.03,0.3062327]
[1767565500774,8.42517133,134.09,134.03,0.3062327]
[1767565500967,5.66509463,134.08,134.03,0.3062327]
[1767565501170,5.66509463,134.07,134.03,0.3062327]
[1767565501471,94.8543,134.11,134.04,0.3062327]
[1767565501674,5.66587756,134.1,134.04,0.3062327]
[1767565501879,5.66587756,134.09,134.04,0.3062327]
[1767565502074,94.8543,134.11,134.04,0.3062327]
[1767565502272,5.66587189,134.1,134.04,0.3062327]
[1767565502478,5.66587189,134.09,134.04,0.3062327]
[1767565502776,94.8543,134.11,134.04,7.0235327]
[1767565502978,5.66692425,134.1,134.04,7.0235327]
[1767565503179,5.66692425,134.09,134.04,7.0235327]
[1767565503380,94.8543,134.11,134.04,7.0235327]
[1767565503580,5.6680757,134.1,134.04,7.0235327]
[1767565503779,5.6680757,134.09,134.04,7.0235327]
[1767565504081,94.8543,134.11,134.04,7.0235327]
[1767565504280,5.66807683,134.1,134.04,7.0235327]
[1767565504481,5.66807683,134.09,134.05,0.3062327]
[1767565504781,94.8543,134.11,134.05,0.3062327]
[1767565504979,5.66934947,134.1,134.05,0.3062327]
[1767565505279,5.66934947,134.09,134.05,0.3062327]
[1767565505467,94.8543,134.11,134.05,0.3062327]
[1767565505672,5.67075433,134.1,134.05,0.3062327]
[1767565505877,5.67075433,134.09,134.05,0.3062327]
[1767565506078,94.8543,134.11,134.05,0.3062327]
[1767565506279,5.67075433,134.1,134.05,0.3062327]
[1767565506478,5.67075433,134.09,134.05,0.3062327]
[1767565506681,94.8543,134.11,134.05,0.3062327]
[1767565506884,5.67195507,134.1,134.05,0.3062327]
[1767565507081,5.67195507,134.09,134.05,0.3062327]
[1767565507274,94.8543,134.11,134.05,0.3062327]
[1767565507472,5.67315219,134.1,134.06,0.3062327]
[1767565507675,1.71017133,134.13,134.06,0.3062327]
[1767565508073,1.71017133,134.13,134.07,6.7157]
[1767565508275,1.71017133,134.13,134.07,7.0219327]
[1767565513487,1.71017133,134.13,134.08,0.3062327]
[1767565517385,8.42317133,134.13,134.06,0.3062327]
[1767565519197,8.42317133,134.13,134.07,0.3062327]
[1767565519690,5.62346849,134.12,134.07,0.3062327]
[1767565519992,8.42317133,134.13,134.07,0.3062327]
[1767565520191,5.62346849,134.12,134.07,0.3062327]
[1767565520391,8.42317133,134.13,134.07,0.3062327]
[1767565520587,5.62328971,134.12,134.07,0.3062327]
[1767565520889,8.42317133,134.13,134.07,0.3062327]
[1767565521089,5.62328971,134.12,134.07,0.3062327]
[1767565521292,8.42317133,134.13,134.07,0.3062327]
[1767565521489,5.62317597,134.12,134.07,0.3062327]
[1767565521787,8.42317133,134.13,134.07,0.3062327]
[1767565521988,5.62317597,134.12,134.07,0.3062327]
[1767565522189,8.42317133,134.13,134.07,0.3062327]
[1767565522387,5.62362576,134.12,134.07,0.3062327]
[1767565522593,8.42317133,134.13,134.07,0.3062327]
[1767565522792,5.62350226,134.12,134.07,0.3062327]
[1767565522989,8.42317133,134.13,134.07,0.3062327]
[1767565523190,5.62350226,134.12,134.07,0.3062327]
[1767565523389,8.42317133,134.13,134.07,0.3062327]
[1767565523589,5.62393811,134.12,134.07,0.3062327]
[1767565523790,8.42317133,134.13,134.07,0.3062327]
[1767565524096,5.62393811,134.12,134.07,0.3062327]
[1767565524290,8.42317133,134.13,134.07,0.3062327]
[1767565524489,5.62448805,134.12,134.07,0.3062327]
[1767565524696,8.42317133,134.13,134.07,0.3062327]
[1767565524897,5.62448918,134.12,134.07,0.3062327]
[1767565525197,8.42317133,134.13,134.07,0.3062327]
[1767565525386,5.624584,134.12,134.07,0.3062327]
[1767565525693,8.42317133,134.13,134.07,0.3062327]
[1767565525888,5.62454826,134.12,134.07,0.3062327]
[1767565526098,8.42317133,134.13,134.07,0.3062327]
[1767565526283,5.62454826,134.12,134.07,0.3062327]
[1767565526483,8.42317133,134.13,134.07,0.3062327]
[1767565526691,5.62466896,134.12,134.07,0.3062327]
[1767565526891,8.42317133,134.13,134.07,0.3062327]
[1767565527092,5.62466896,134.12,134.06,6.7163]
[1767565527284,8.42317133,134.13,134.06,6.7163]
[1767565527595,5.62501931,134.12,134.06,7.0225327]
[1767565527790,8.42317133,134.13,134.06,7.0225327]
[1767565527990,5.62501931,134.12,134.06,7.0225327]
[1767565528194,8.42317133,134.13,134.06,7.0225327]
[1767565528396,5.62535327,134.12,134.06,7.0225327]
[1767565528595,8.42317133,134.13,134.06,7.0225327]
[1767565528797,5.62535327,134.12,134.06,7.0225327]
[1767565528988,8.42317133,134.13,134.06,7.0225327]
[1767565529189,5.62535327,134.12,134.06,7.0225327]
[1767565529385,8.42317133,134.13,134.06,7.0225327]
[1767565529589,5.62574676,134.12,134.06,7.0225327]
[1767565529888,8.42317133,134.13,134.06,7.0225327]
[1767565530184,5.62574676,134.12,134.06,7.0225327]
[1767565530382,8.42317133,134.13,134.06,7.0225327]
[1767565530593,5.62585671,134.12,134.06,7.0225327]
[1767565530781,8.42317133,134.13,134.06,7.0225327]
[1767565530982,5.62585671,134.12,134.06,0.3062327]
[1767565531284,5.62585671,134.11,134.06,0.3062327]
[1767565531489,8.42317133,134.13,134.06,0.3062327]
[1767565531699,5.62610739,134.12,134.06,0.3062327]
[1767565531893,5.62610739,134.11,134.06,0.3062327]
[1767565532095,5.62646963,134.1,134.04,0.33738968]
[1767565532294,1.71017133,134.11,134.04,0.33738968]
[1767565532497,5.62683269,134.1,134.04,0.33738968]
[1767565532799,1.71017133,134.11,134.04,0.33738968]
[1767565532993,5.62683269,134.1,134.04,0.33738968]
[1767565533195,1.71017133,134.11,134.04,0.33738968]
[1767565533499,5.62704581,134.1,134.04,0.33738968]
[1767565533799,1.71017133,134.11,134.04,7.05468968]
[1767565534002,5.6272817,134.1,134.04,7.05468968]
[1767565534192,8.42407133,134.11,134.04,7.05468968]
[1767565534394,5.62743989,134.1,134.04,7.05468968]
[1767565534592,8.42407133,134.11,134.04,7.05468968]
[1767565534788,5.62743989,134.1,134.04,7.05468968]
[1767565535094,8.42407133,134.11,134.04,7.05468968]
[1767565535292,5.62743989,134.1,134.04,7.05468968]
[1767565535493,8.42407133,134.11,134.04,7.05468968]
[1767565535694,5.62759983,134.1,134.04,7.05468968]
[1767565535899,8.42407133,134.11,134.04,7.05468968]
[1767565536201,5.62759983,134.1,134.04,7.05468968]
[1767565536401,8.42407133,134.11,134.04,7.05468968]
[1767565536602,5.62776272,134.1,134.04,7.05468968]
[1767565536904,8.42407133,134.11,134.04,7.05468968]
[1767565537093,5.62776272,134.1,134.04,7.05468968]
[1767565537291,8.42407133,134.11,134.04,7.05468968]
[1767565537494,5.62792863,134.1,134.04,7.05468968]
[1767565537694,8.42407133,134.11,134.04,7.05468968]
[1767565537895,5.62792863,134.1,134.04,7.05468968]
[1767565538196,8.42407133,134.11,134.04,7.05468968]
[1767565538395,5.62809764,134.1,134.04,7.05468968]
[1767565538696,8.42407133,134.11,134.04,7.05468968]
[1767565538897,5.62809764,134.1,134.04,7.05468968]
[1767565539094,8.42407133,134.11,134.04,7.05468968]
[1767565539291,5.62814872,134.1,134.04,7.05468968]
[1767565539496,5.62814872,134.09,134.04,7.05468968]
[1767565539700,8.42407133,134.11,134.04,7.05468968]
[1767565539901,5.62830201,134.1,134.04,7.05468968]
[1767565540204,5.62830201,134.09,134.04,7.05468968]
[1767565540408,8.42407133,134.11,134.04,7.05468968]
[1767565540604,5.62846666,134.1,134.04,7.05468968]
[1767565540801,5.62846666,134.09,134.04,7.05468968]
[1767565541002,8.42407133,134.11,134.04,7.05468968]
[1767565541203,5.62846694,134.1,134.04,7.05468968]
[1767565541406,5.62846694,134.09,134.04,7.05468968]
[1767565541704,8.42407133,134.11,134.04,7.05468968]
[1767565541905,5.62860608,134.1,134.04,7.05468968]
[1767565542210,5.62860608,134.09,134.04,7.05468968]
[1767565542508,8.42407133,134.11,134.04,7.05468968]
[1767565542708,5.62904984,134.1,134.04,7.05468968]
[1767565542909,5.62904984,134.09,134.04,7.05468968]
[1767565543109,8.42407133,134.11,134.04,7.05468968]
[1767565543311,5.62904984,134.1,134.04,7.05468968]
[1767565543508,5.62904984,134.09,134.04,7.05468968]
[1767565543697,8.42407133,134.11,134.04,7.05468968]
[1767565543902,5.6298942,134.1,134.04,7.05468968]
[1767565544102,5.6298942,134.09,134.04,7.05468968]
[1767565544299,8.42407133,134.11,134.04,7.05468968]
[1767565544502,5.63078598,134.1,134.04,7.05468968]
[1767565544702,5.63078598,134.09,134.04,7.05468968]
[1767565544905,8.42407133,134.11,134.04,7.05468968]
[1767565545200,5.63078598,134.1,134.04,7.05468968]
[1767565545405,7.34095731,134.09,134.02,7.03119734]
[1767565545711,5.63078598,134.08,134.02,7.03119734]
[1767565552112,12.34618598,134.08,134.02,0.31319734]
[1767565552317,5.63078598,134.07,134.02,0.31319734]
[1767565552520,6.7154,134.08,134.02,0.31319734]
[1767565552709,5.62715662,134.07,134.02,0.31319734]
[1767565552910,6.7154,134.08,134.02,0.31319734]
[1767565553109,5.62744364,134.07,134.02,0.31319734]
[1767565553314,6.7154,134.08,134.02,0.31319734]
[1767565553511,5.62633113,134.07,134.02,0.31319734]
[1767565553711,6.7154,134.08,134.02,0.31319734]
[1767565553915,5.62633113,134.07,134.02,0.31319734]
[1767565554120,6.7154,134.08,134.02,0.31319734]
[1767565554319,5.62633113,134.07,134.02,0.31319734]
[1767565554620,6.7154,134.08,134.02,0.31319734]
[1767565554806,5.62549051,134.07,134.02,0.31319734]
[1767565555009,6.7154,134.08,134.02,0.31319734]
[1767565555217,5.62549051,134.07,134.02,0.31319734]
[1767565555416,6.7154,134.08,134.02,0.31319734]
[1767565555613,5.62472427,134.07,134.02,0.31319734]
[1767565555818,6.7154,134.08,134.02,0.31319734]
[1767565556016,5.62472427,134.07,134.02,0.31319734]
[1767565556205,6.7154,134.08,134.02,0.31319734]
[1767565556409,5.62421123,134.07,134.02,0.31319734]
[1767565556609,6.7154,134.08,134.02,0.31319734]
[1767565556815,5.6242112,134.07,134.01,6.7189]
[1767565557116,6.7154,134.08,134.01,6.7189]
[1767565557321,5.62421509,134.07,134.01,6.7189]
[1767565557511,6.7154,134.08,134.01,6.7189]
[1767565557712,5.62381148,134.07,134.01,6.7189]
[1767565557920,6.7154,134.08,134.01,6.7189]
[1767565558110,5.62381148,134.07,134.01,6.7189]
[1767565558310,6.7154,134.08,134.01,6.7189]
[1767565558514,5.6235233,134.07,134.01,6.7189]
[1767565558710,6.7154,134.08,134.01,6.7189]
[1767565558910,5.6235233,134.07,134.01,6.7189]
[1767565559110,6.7154,134.08,134.01,6.7189]
[1767565559313,5.6235233,134.07,134.01,6.7189]
[1767565559512,6.7154,134.08,134.01,6.7189]
[1767565559714,5.62334661,134.07,134.01,6.7189]
[1767565559910,6.7154,134.08,134.01,6.7189]
[1767565560115,5.62334661,134.07,134.01,6.7189]
[1767565560316,6.7154,134.08,134.01,6.7189]
[1767565560523,5.62362898,134.07,134.01,6.7189]
[1767565560821,6.7154,134.08,134.01,6.7189]
[1767565561022,5.62362898,134.07,134.01,6.7189]
[1767565561217,6.7154,134.08,134.01,6.7189]
[1767565561417,5.62361489,134.07,134.01,6.7189]
[1767565561617,6.7154,134.08,134.01,6.7189]
[1767565561817,5.62361489,134.07,134.01,6.7189]
[1767565562020,6.7154,134.08,134.01,6.7189]
[1767565562222,5.62361489,134.07,134.01,6.7189]
[1767565562421,6.7154,134.08,134.01,6.7189]
[1767565562614,5.62371575,134.07,134.01,6.7189]
[1767565562811,6.7154,134.08,134.01,7.0343739]
[1767565563022,5.62371575,134.07,134.01,7.0343739]
[1767565563220,6.7154,134.08,134.01,7.0343739]
[1767565563419,5.62355014,134.07,134.01,7.0343739]
[1767565563619,6.7154,134.08,134.01,7.0343739]
[1767565563821,5.62355014,134.07,134.01,7.0343739]
[1767565564020,6.7154,134.08,134.01,7.0343739]
[1767565564221,5.62355014,134.07,134.01,7.0343739]
[1767565564423,6.7154,134.08,134.01,7.0343739]
[1767565564622,5.62362075,134.07,134.01,7.0343739]
[1767565564822,6.7154,134.08,134.01,7.0343739]
[1767565565023,5.62362075,134.07,134.01,7.0343739]
[1767565565219,6.7154,134.08,134.01,7.0343739]
[1767565565416,5.62379493,134.07,134.01,7.0343739]
[1767565565623,6.7154,134.08,134.01,7.0343739]
[1767565565825,5.62379493,134.07,134.01,7.0343739]
[1767565566127,6.7154,134.08,134.01,7.0343739]
[1767565566423,5.62367423,134.07,134.01,7.0343739]
[1767565566626,6.7154,134.08,134.01,7.0343739]
[1767565566825,5.62406745,134.07,134.01,7.0343739]
[1767565567026,6.7154,134.08,134.01,7.0343739]
[1767565567214,5.62406745,134.07,134.01,7.0343739]
[1767565567419,6.7154,134.08,134.01,7.0343739]
[1767565567616,5.62444161,134.07,134.01,7.0343739]
[1767565567824,6.7154,134.08,134.01,7.0343739]
[1767565568023,5.62444161,134.07,134.01,7.0343739]
[1767565568225,6.7154,134.08,134.01,7.0343739]
[1767565568421,5.62492222,134.07,134.01,7.0343739]
[1767565568621,6.7154,134.08,134.01,7.0343739]
[1767565568821,5.62492222,134.07,134.01,7.0343739]
[1767565569020,6.7154,134.08,134.01,7.0343739]
[1767565569224,5.62492222,134.07,134.01,7.0343739]
[1767565569525,5.62551812,134.06,133.99,0.3154739]
[1767565569829,5.62551812,134.05,133.99,0.3154739]
[1767565570029,90.81347529,134.08,133.99,0.3154739]
[1767565570229,5.62622891,134.07,133.99,0.3154739]
[1767565570431,5.62622891,134.06,133.99,0.3154739]
[1767565570622,12.34312891,134.05,133.99,0.3154739]
[1767565570822,6.7169,134.05,133.99,0.3154739]
[1767565571023,90.81347529,134.08,133.99,0.3154739]
[1767565571223,5.62613658,134.07,133.99,0.3154739]
[1767565571423,5.62613658,134.06,133.99,0.3154739]
[1767565571624,5.62613658,134.05,133.99,0.3154739]
[1767565571825,90.81347529,134.08,133.99,0.3154739]
[1767565572025,5.62622998,134.07,133.99,0.3154739]
[1767565572225,5.62622998,134.06,133.99,0.3154739]
[1767565572526,5.62622998,134.05,133.99,0.3154739]
[1767565574926,6.7157,134.08,134.01,0.3154739]
[1767565575131,5.62683161,134.07,134.01,0.3154739]
[1767565575437,6.7157,134.08,134.01,0.3154739]
[1767565575627,5.62708434,134.07,134.01,0.3154739]
[1767565575826,88.16,134.1,134.02,0.3154739]
[1767565575827,94.8748,134.1,134.02,0.3154739]
[1767565576027,5.6270832,134.09,134.02,0.3154739]
[1767565576227,5.6270832,134.08,134.02,0.3154739]
[1767565576428,88.16,134.1,134.02,0.3154739]
[1767565576429,5.6270832,134.07,134.02,0.3154739]
[1767565576633,88.16,134.1,134.02,0.3154739]
[1767565576933,5.62814756,134.09,134.02,0.3154739]
[1767565577136,5.62814756,134.08,134.02,0.3154739]
[1767565577336,88.16,134.1,134.02,0.3154739]
[1767565577526,12.3436926,134.09,134.02,0.3154739]
[1767565577727,5.6286926,134.08,134.02,0.3154739]
[1767565578030,6.715,134.09,134.02,0.3154739]
[1767565578231,5.6286926,134.08,134.02,0.3154739]
[1767565578432,6.715,134.09,134.02,0.3154739]
[1767565578732,5.62927817,134.08,134.02,0.3154739]
[1767565578920,6.715,134.09,134.02,0.3154739]
[1767565579126,5.62927817,134.08,134.02,0.3154739]
[1767565579423,6.715,134.09,134.03,0.3154739]
[1767565579625,5.63168925,134.08,134.03,0.3154739]
[1767565579931,6.715,134.09,134.03,0.3154739]
[1767565580124,5.63168925,134.08,134.03,0.3154739]
[1767565580435,5.63168925,134.07,134.03,0.3154739]
[1767565580733,6.715,134.09,134.03,0.3154739]
[1767565580930,5.63216015,134.08,134.03,0.3154739]
[1767565581139,5.63216015,134.07,134.03,0.3154739]
[1767565581434,6.715,134.09,134.03,0.3154739]
[1767565581622,5.63266133,134.08,134.03,0.3154739]
[1767565581825,88.16,134.1,134.03,0.3154739]
[1767565582023,5.63260143,134.09,134.03,0.3154739]
[1767565582223,5.63260143,134.08,134.03,0.3154739]
[1767565582423,88.16,134.1,134.03,0.3154739]
[1767565582621,5.63308516,134.09,134.03,0.3154739]
[1767565582824,5.63308516,134.08,134.03,0.3154739]
[1767565583035,88.16,134.1,134.03,0.3154739]
[1767565583238,5.63308516,134.09,134.03,0.3154739]
[1767565583434,5.63308516,134.08,134.03,0.3154739]
[1767565583635,88.16,134.1,134.04,0.3154739]
[1767565583935,5.63359153,134.09,134.04,0.3154739]
[1767565584136,5.63359153,134.08,134.04,0.3154739]
[1767565584333,88.16,134.1,134.04,0.3154739]
[1767565584637,5.63401642,134.09,134.04,0.3154739]
[1767565584828,5.63401642,134.08,134.04,0.3154739]
[1767565585027,88.16,134.1,134.04,0.3154739]
[1767565585332,5.63399086,134.09,134.04,0.3154739]
[1767565585532,5.63399086,134.08,134.04,0.3154739]
[1767565585738,88.16,134.1,134.04,0.3154739]
[1767565585936,5.6344794,134.09,134.04,0.3154739]
[1767565586136,5.6344794,134.08,134.04,0.3154739]
[1767565586337,88.16,134.1,134.04,0.3154739]
[1767565586541,5.63499422,134.09,134.04,7.0328739]
[1767565586742,5.63499422,134.08,134.04,7.0328739]
[1767565586938,88.16,134.1,134.04,7.0328739]
[1767565587244,5.63493429,134.09,134.04,7.0328739]
[1767565587441,5.63493429,134.08,134.04,7.0328739]
[1767565587642,88.16,134.1,134.04,7.0328739]
[1767565587844,5.63540311,134.09,134.04,7.0328739]
[1767565588139,5.63540311,134.08,134.04,7.0328739]
[1767565588340,88.16,134.1,134.04,7.0328739]
[1767565588644,5.63589302,134.09,134.04,7.0328739]
[1767565588935,5.63589302,134.08,134.04,7.0328739]
[1767565589138,88.16,134.1,134.04,7.0328739]
[1767565589339,5.63578985,134.09,134.04,7.0328739]
[1767565589538,5.63578985,134.08,134.04,7.0328739]
[1767565589734,88.16,134.1,134.04,7.0328739]
[1767565589939,5.6361161,134.09,134.04,7.0328739]
[1767565590143,5.6361161,134.08,134.04,7.0328739]
[1767565590341,88.16,134.1,134.04,7.0328739]
[1767565590545,5.63646382,134.09,134.04,7.0328739]
[1767565590732,5.63646382,134.08,134.04,7.0328739]
[1767565590934,88.16,134.1,134.04,7.0328739]
[1767565591138,5.63646382,134.09,134.04,7.0328739]
[1767565591345,88.16,134.1,134.04,7.0328739]
[1767565591346,5.63646382,134.08,134.04,7.0328739]
[1767565591546,88.16,134.1,134.04,7.0328739]
[1767565591844,5.63609681,134.09,134.04,7.0328739]
[1767565592044,5.63609681,134.08,134.04,7.0328739]
[1767565592244,6.7132,134.13,134.06,7.04407855]
[1767565592448,5.63542656,134.12,134.06,7.04407855]
[1767565592750,5.63542656,134.11,134.06,7.04407855]
[1767565592940,5.63542656,134.1,134.06,7.04407855]
[1767565593135,6.7132,134.13,134.06,7.04407855]
[1767565593450,5.63250331,134.12,134.07,0.32767855]
[1767565593649,5.63250331,134.11,134.07,0.32767855]
[1767565593834,6.7132,134.13,134.07,0.32767855]
[1767565594034,5.63233381,134.12,134.07,0.32767855]
[1767565594235,5.63233381,134.11,134.07,0.32767855]
[1767565594446,6.7132,134.13,134.07,0.32767855]
[1767565594750,5.63043234,134.12,134.07,0.32767855]
[1767565594949,6.7132,134.13,134.07,0.32767855]
[1767565595241,5.63043234,134.12,134.07,0.32767855]
[1767565595440,5.63043234,134.11,134.07,0.32767855]
[1767565595642,6.7132,134.13,134.07,0.32767855]
[1767565595844,5.62876997,134.12,134.07,0.32767855]
[1767565596045,5.62876997,134.11,134.07,0.32767855]
[1767565596246,6.7132,134.13,134.07,0.32767855]
[1767565596550,5.62729315,134.12,134.07,0.32767855]
[1767565596747,88.14,134.14,134.07,7.04347855]
[1767565596952,5.62718991,134.13,134.08,0.3330679]
[1767565597250,5.62718991,134.12,134.08,0.3330679]
[1767565597453,88.14,134.14,134.08,0.3330679]
[1767565597639,5.62538974,134.13,134.08,0.3330679]
[1767565597838,5.62538974,134.12,134.08,0.3330679]
[1767565598047,88.14,134.14,134.08,0.3330679]
[1767565598250,5.62538974,134.13,134.08,0.3330679]
[1767565598448,88.14,134.14,134.08,0.3330679]
[1767565598649,5.62391124,134.13,134.08,0.3330679]
[1767565598849,88.14,134.14,134.08,0.3330679]
[1767565599148,5.62391124,134.13,134.08,0.3330679]
[1767565599348,88.14,134.14,134.08,0.3330679]
[1767565599551,5.62266033,134.13,134.08,0.3330679]
[1767565599744,88.14,134.14,134.08,0.3330679]
[1767565599945,5.62266033,134.13,134.08,0.3330679]
[1767565600249,88.14,134.14,134.08,0.3330679]
[1767565600443,5.62157163,134.13,134.08,0.3330679]
[1767565600643,88.14,134.14,134.08,0.3330679]
[1767565600844,5.62157214,134.13,134.08,0.3330679]
[1767565601039,88.14,134.14,134.08,0.3330679]
[1767565601246,5.62157214,134.13,134.08,0.3330679]
[1767565601450,88.14,134.14,134.08,0.3330679]
[1767565601653,5.62060946,134.13,134.08,0.3330679]
[1767565601852,88.14,134.14,134.08,0.3330679]
[1767565602055,5.62032293,134.13,134.08,0.3330679]
[1767565602256,88.14,134.14,134.08,0.3330679]
[1767565602558,5.61923347,134.13,134.08,0.3330679]
[1767565602854,88.14,134.14,134.08,0.3330679]
[1767565603056,5.61923234,134.13,134.08,0.3330679]
[1767565603243,88.14,134.14,134.08,0.3330679]
[1767565603446,5.61827637,134.13,134.08,0.3330679]
[1767565603647,88.14,134.14,134.08,0.3330679]
[1767565603947,5.61827637,134.13,134.08,0.3330679]
[1767565604147,88.14,134.14,134.08,0.3330679]
[1767565607860,94.8524,134.14,134.08,0.3330679]
[1767565608357,94.8524,134.14,134.07,6.7158]
[1767565612662,96.56193192,134.14,134.07,6.7158]
[1767565613870,96.56193192,134.14,134.07,7.0488679]